Cogmind - Beta 10 @@@ ROGUE MODE // 2020.09.15 @ 04:17:43 Player: Torako Result: Escaped! Performance ------------- Evolutions (9) 4500 Regions Visited (24) 4800 Robots Destroyed (265) 1325 Value Destroyed (11102) 11102 Prototype IDs (91) 1820 Alien Tech Used (3) 600 Bonus (14899) 14899 TOTAL SCORE: 39046 Bonus ------- Triggered High Security 1000 High Alert Combat Kills 3640 Follower Combat Kills 5957 Aligned with FarCom 300 Met Imprinter 300 Was Imprinted 300 Built Enhanced Grunts 300 A7 Reached Mainframe 300 Met R17 at Cetus 500 Win 3000 Friendly Fire -698 Cogmind --------- Core Integrity 1123/1600 Matter 300/300 Energy 598/600 System Corruption 10% Temperature Cool (2) Movement Flying (117) Ox1 Location To Epsilon Eridani Parts ------- > --- POWER (2) -------- Quantum Reactor Quantum Reactor > --- PROPULSION (8) --- Q-thruster Impulse Thruster Array > --- UTILITY (12) ----- Medium Storage Unit Spectral Analyzer Advanced Targeting Computer Advanced Core Analyzer Advanced Hacking Suite Improved System Shield > --- WEAPON (4) ------- Heavy Tesla Rifle > --- INVENTORY (8) ---- Advanced Heavy Siege Treads Hacking Suite Makeshift Hacking Suite Enhanced Nova Cannon Heavy Gauss Cannon Peak State ------------ > --- POWER ------------ Quantum Reactor Light Quantum Reactor > --- PROPULSION ------- Q-thruster Q-thruster Q-thruster Q-thruster Q-thruster Q-thruster Q-thruster Q-thruster > --- UTILITY ---------- Experimental Heat Sink Experimental Heat Sink Medium Storage Unit Spectral Analyzer Advanced Sensor Array Advanced Signal Interpreter Advanced Targeting Computer Advanced Core Analyzer Experimental Shock Absorption System EM Disruption Field Advanced Hacking Suite System Shield > --- WEAPON ----------- Improved Arc Projector Phase Gun Enhanced Quantum Rifle > --- INVENTORY -------- Biometal Heavy Treads Advanced Heavy Siege Treads Advanced Force Field Heavy Laser Enhanced Nova Cannon [Rating: 177] Favorites ----------- Power Reinforced Fission Core Engine Cooled Ion Engine Power Core Reinforced Fission Core Reactor Quantum Reactor Propulsion Armored Wheel Treads Light Treads Leg Advanced Myomer Leg Wheel Armored Wheel Hover Unit Cooled Gravmag System Flight Unit Q-thruster Utility High-capacity Storage Unit Device Advanced Cooling System Storage High-capacity Storage Unit Processor Advanced Signal Interpreter Hackware System Shield Protection Zionite Weapon Casing Weapon Enhanced Autogun Energy Gun Zionite Phaser-M Energy Cannon Enhanced Nova Cannon Ballistic Gun Enhanced Autogun Ballistic Cannon Linear Accelerator Launcher Neutron Missile Launcher Special Weapon Improved Plasma Cutter Slashing Weapon Phasing Sabre Piercing Weapon CR-A16's Behemoth Slayer Build | -11 -10 -10 -9 -9 -9 -8 -8 -7 -7 -7 -7 -6 -6 -5 -5 -5 -5 -4 -4 -4 -4 -3 -2 -1 ------- Run | Scr Mat Min Mat Min Exi Min Mat Fac Low Low Zio Pro Fac Fac Upp Upp Zhi Pro Fac Ext Cet Res Res Acc Slots Evolved 18 | . . . 2 . . . 2 2 . . . . 2 2 . . . . 2 . . 2 2 2 Power 1 | . . . . . . . . . . . . . . . . . . . . . . 1 . . Propulsion 6 | . . . . . . . 1 . . . . . . 1 . . . . . . . . 2 2 Utility 9 | . . . 1 . . . 1 1 . . . . 2 1 . . . . 2 . . 1 . . Weapon 2 | . . . 1 . . . . 1 . . . . . . . . . . . . . . . . Parts Attached 404 | 7 4 . 22 1 27 4 16 16 1 5 1 . 22 38 2 23 11 8 9 41 18 43 24 61 Power 29 | 1 1 . 2 . 1 . . 2 . . . . 2 1 1 1 1 1 . 3 2 1 2 7 Engine 4 | 1 1 . 2 . . . . . . . . . . . . . . . . . . . . . Core 10 | . . . . . 1 . . 2 . . . . 1 1 1 1 . . . 2 1 . . . Reactor 15 | . . . . . . . . . . . . . 1 . . . 1 1 . 1 1 1 2 7 Propulsion 96 | 2 . . 4 . 5 . 3 4 . . 1 . 3 8 . 7 3 2 2 10 5 8 13 16 Treads 20 | 1 . . 3 . 2 . . 1 . . . . . 5 . 2 . . . . 2 . 4 . Leg 13 | . . . . . 3 . 1 . . . . . . . . . . . . . 3 6 . . Wheel 15 | 1 . . 1 . . . 2 3 . . 1 . 3 3 . . . . . . . 1 . . Hover 22 | . . . . . . . . . . . . . . . . 1 3 2 2 10 . 1 1 2 Flight 26 | . . . . . . . . . . . . . . . . 4 . . . . . . 8 14 Utility 171 | 1 2 . 8 . 14 . 4 6 1 3 . . 12 15 1 11 5 4 7 20 9 21 2 25 Device 61 | . . . 1 . 5 . 3 2 1 2 . . 7 7 1 6 2 . 4 2 5 2 1 10 Storage 27 | 1 2 . 4 . 4 . . . . . . . 3 2 . . 1 2 1 2 . 2 1 2 Processor 26 | . . . 1 . 2 . . 1 . . . . . 2 . 2 . . . 2 . 11 . 5 Hackware 8 | . . . . . . . . . . . . . . . . . . 1 . . . 2 . 5 Protection 49 | . . . 2 . 3 . 1 3 . 1 . . 2 4 . 3 2 1 2 14 4 4 . 3 Artifact . | . . . . . . . . . . . . . . . . . . . . . . . . . Weapon 108 | 3 1 . 8 1 7 4 9 4 . 2 . . 5 14 . 4 2 1 . 8 2 13 7 13 Energy Gun 29 | 2 1 . 3 . . . . . . . . . . 1 . . . . . 4 1 6 3 8 Energy Cannon 8 | . . . 1 . . . . . . 1 . . . . . . . . . . . . 1 5 Ballistic Gun 50 | 1 . . 4 . 6 4 8 4 . 1 . . 5 12 . 2 . . . . . 2 1 . Ballistic Cannon 1 | . . . . . . . . . . . . . . . . . . . . . . . 1 . Launcher 7 | . . . . . 1 . 1 . . . . . . . . . 1 . . . . 4 . . Special Weapon 3 | . . . . . . . . . . . . . . . . . 1 1 . . . . 1 . Impact Weapon . | . . . . . . . . . . . . . . . . . . . . . . . . . Slashing Weapon 8 | . . . . 1 . . . . . . . . . . . 1 . . . 4 1 1 . . Piercing Weapon 2 | . . . . . . . . . . . . . . 1 . 1 . . . . . . . . Special Melee Weapon . | . . . . . . . . . . . . . . . . . . . . . . . . . Unidentified Prototypes 46 | . . . 2 . 8 . 2 1 . . . . 3 3 . . 5 1 2 4 4 2 3 6 Parts Lost 155 | . 2 . 1 . 2 1 3 2 . . . . 9 20 1 4 . 5 . 29 1 26 18 31 Power 12 | . 1 . . . . . . . . . . . 1 1 1 . . . . 2 . 2 . 4 Propulsion 47 | . . . . . 2 . . . . . . . 2 5 . . . 2 . 8 . 7 8 13 Utility 56 | . . . . . . . . . . . . . 1 5 . 1 . 3 . 17 1 12 7 9 Weapon 40 | . 1 . 1 . . 1 3 2 . . . . 5 9 . 3 . . . 2 . 5 3 5 Highest Loss Streak 21 | . 1 . 1 . 2 1 2 2 . . . . 4 5 1 3 . 3 . 21 1 15 7 9 Average Slot Usage (%) 90 | . 95 100 100 99 88 100 93 99 100 100 92 92 96 88 88 82 92 91 90 98 79 78 48 71 Engine 2 | . 13 14 11 11 6 . . . . . . . . . . . . . . . . . . . Core 3 | . . . . . 4 11 9 7 7 7 7 7 5 3 5 5 1 . . 2 1 . . . Reactor 1 | . . . . . . . . . . . . . . 1 . . 3 5 5 2 . 7 . 5 Treads 4 | . 14 14 11 11 9 . . . . . . . . 6 11 7 . . . . 4 7 5 . Leg 2 | . . . . . 9 22 18 3 . . . . . . . . . . . . 8 1 . . Wheel 7 | . 14 14 11 11 2 . 3 17 23 23 15 15 17 6 . . . . . . . . 1 . Hover 2 | . . . . . . . . . . . . . . . . . 16 20 16 19 . . 2 . Flight 1 | . . . . . . . . . . . . . . . . 2 3 . . . . . 2 22 Device 6 | . . . 1 . 1 . 5 7 7 7 7 7 12 6 5 4 16 13 12 11 16 14 . 9 Storage 16 | . 24 28 30 33 15 22 18 15 15 15 15 15 22 27 23 18 . 1 5 5 . 3 . 1 Processor 10 | . . . . . 7 11 9 7 15 15 15 15 8 5 17 18 23 22 20 18 15 12 31 15 Protection 4 | . . . 1 . 5 . 3 6 . . . . 1 3 . 2 5 5 14 17 12 10 . . Energy Gun 3 | . 28 28 15 9 . . . . . . . . . . . . . . . 3 4 5 . 3 Ballistic Gun 16 | . . . 16 22 19 33 24 29 30 29 30 30 25 19 23 18 . . . . . 1 1 . Slashing Weapon 1 | . . . . . 5 . . . . . . . . . . . 5 5 5 10 10 3 . . Piercing Weapon 1 | . . . . . . . . . . . . . . 1 . . 5 5 5 5 5 3 . . Naked Turns 8 | . . . . . . . . . . . . . . . . . . . . . . 8 . . Heaviest Build 165 | 13 41 39 66 65 101 97 100 107 98 102 99 99 164 165 151 154 38 38 58 67 57 117 59 75 Greatest Support 230 | 10 10 10 20 20 72 60 75 36 36 36 40 40 40 150 150 160 67 91 67 88 160 160 230 94 Greatest Overweight (x) 51 | 1 4 3 6 6 6 1 3 4 2 2 8 2 6 4 1 51 . . 1 8 5 . . 1 Average Overweight (x) 1 | . 2 3 4 5 2 1 1 3 2 2 2 2 3 1 . . . . . . . . . . Largest Inventory Capacity 36 | 6 16 16 22 22 22 20 20 20 20 20 20 20 36 36 36 36 4 6 8 8 8 12 12 8 Average Capacity 18 | 5 13 16 20 22 13 20 20 20 20 20 20 20 31 36 36 29 4 4 6 8 4 7 4 6 Most Carried 36 | 5 9 12 22 22 22 20 20 20 20 20 19 19 36 36 36 36 4 5 6 8 4 12 4 8 Average Carried 16 | 3 5 10 19 21 12 19 19 19 18 17 18 19 22 31 34 26 3 3 5 7 3 5 2 5 Final Capacity 36 | 6 16 16 22 22 20 20 20 20 20 20 20 20 36 36 36 4 4 6 8 8 4 4 4 8 Final Carried 36 | 5 9 12 22 22 20 19 20 19 20 16 19 19 36 35 36 4 4 5 6 4 4 4 1 6 Class Distribution -------------------- 30% | Hauler-Gunner 19% | Scavenger-Mutant 13% | Hauler-Skirmisher 11% | Mutant 8% | Scavenger-Gunner 5% | Hauler-Tank Dominant Class ---------------- Mutant | -10/Materials Mutant | -10/Mines Hauler-Gunner | -9/Materials Hauler-Gunner | -9/Mines Scavenger-Gunner | -9/Exiles Scavenger-Gunner | -8/Mines Scavenger-Gunner | -8/Materials Hauler-Gunner | -7/Factory Hauler-Skirmisher | -7/Lower Caves Hauler-Skirmisher | -7/Lower Caves Hauler-Skirmisher | -7/Zion Hauler-Skirmisher | -6/Proximity Caves Hauler-Gunner | -6/Factory Hauler-Tank | -5/Factory Hauler-Gunner | -5/Upper Caves Hauler-Gunner | -5/Upper Caves Scavenger-Mutant | -5/Zhirov Scavenger-Mutant | -4/Proximity Caves Scavenger-Mutant | -4/Factory Scavenger-Mutant | -4/Extension Scavenger-Mutant | -4/Cetus Scavenger-Mutant | -3/Research Mutant | -2/Research Hacker-Sprinter | -1/Access Resources | -11 -10 -10 -9 -9 -9 -8 -8 -7 -7 -7 -7 -6 -6 -5 -5 -5 -5 -4 -4 -4 -4 -3 -2 -1 ----------- Run | Scr Mat Min Mat Min Exi Min Mat Fac Low Low Zio Pro Fac Fac Upp Upp Zhi Pro Fac Ext Cet Res Res Acc Matter Collected 9160 | 262 238 . 453 82 252 303 363 1110 86 304 77 81 647 1420 678 707 134 114 90 370 185 263 383 558 Remotely 30 | . . . . . . . . . . . . . . . . . . . . 30 . . . . Salvage Created 13472 | 81 449 55 811 181 155 266 512 1274 . 194 . 153 323 2493 446 600 260 254 590 1957 110 1951 92 265 Parts 617 | 4 15 3 57 12 11 13 36 45 . 10 . 8 26 88 20 32 19 11 24 86 4 77 2 14 Haulers Intercepted 7 | . 2 . 2 . . . 1 . . . . . . 1 . . . . . . . 1 . . Recyclers Shooed 6 | . . . 1 . . . 1 . . . . . . 3 . . . . . . . 1 . . Parts Field Recycled . | . . . . . . . . . . . . . . . . . . . . . . . . . Retrieved Matter . | . . . . . . . . . . . . . . . . . . . . . . . . . Parts Self-Destructed 98 | . . . . . . . . . . 9 . 16 . . 19 32 12 10 . . . . . . Prevented 2 | . . . . . . . . . . . . 2 . . . . . . . . . . . . Kills | -11 -10 -10 -9 -9 -9 -8 -8 -7 -7 -7 -7 -6 -6 -5 -5 -5 -5 -4 -4 -4 -4 -3 -2 -1 ------- Run | Scr Mat Min Mat Min Exi Min Mat Fac Low Low Zio Pro Fac Fac Upp Upp Zhi Pro Fac Ext Cet Res Res Acc Combat Hostiles Destroyed 220 | . 9 3 16 8 6 7 13 28 . 3 . 3 4 33 7 10 . 4 7 25 1 29 1 3 Melee 44 | . . . . . . . . . . . . . . 2 . 2 . 4 6 23 . 7 . . Guns 157 | . 8 3 16 8 4 7 9 28 . 3 . 3 4 31 7 8 . . . . 1 16 1 . Cannons 3 | . . . . . . . . . . . . . . . . . . . . . . . . 3 AOE 12 | . . . . . 2 . 4 . . . . . . . . . . . . . . 6 . . Classes Destroyed 22 | 2 3 . 3 1 1 . 1 2 . 1 . . . . 2 . . 1 . 1 1 3 . . Worker 13 | . . . 2 . . . 1 . . . . . 2 8 . . . . . . . . . . Builder 7 | . . . 1 . . . . . . . . . 1 1 . . . . 1 1 . 2 . . Tunneler 4 | 1 1 . 1 . . . . . . . . . 1 . . . . . . . . . . . Hauler 7 | . 2 . 2 . . . 1 . . . . . . 1 . . . . . . . 1 . . Recycler 8 | 1 . . . . . 1 . . . . . . . 2 . . . . 2 1 . 1 . . Operator 1 | . . . . . . . . 1 . . . . . . . . . . . . . . . . Watcher 3 | . . . . . . . . . . . . . . . . . . . . . 1 . . 2 Swarmer 50 | . 3 3 3 6 . 4 7 9 . . . 1 . 3 . . . 2 5 . . 2 . 2 Saboteur 1 | . . . . . . . . . . . . . . . . . . . . . . 1 . . Grunt 85 | . 6 . 7 1 . 3 2 14 . . . 2 . 18 2 3 . . 1 14 . 11 1 . Brawler 12 | . . . . 1 . . 1 2 . . . . . 2 1 . . . . 1 . 4 . . Duelist 2 | . . . . . . . . . . . . . . . 1 . . . . . . 1 . . Protector 1 | . . . . . . . . . . . . . . . . . . . . . . 1 . . Researcher 1 | . . . . . . . . . . . . . . . . . . 1 . . . . . . Sentry 21 | . . . 6 . . . 2 2 . 1 . . 1 1 2 1 . . . 4 . . . 1 Specialist 1 | . . . . . . . . . . . . . . . . . . . . 1 . . . . Hunter 15 | . . . . . . . 1 . . 1 . . 2 4 . 3 . 2 . . . 2 . . Programmer 20 | . . . . . . . . 1 . . . . 1 5 . 2 . . . 3 1 7 . . Behemoth 4 | . . . . . . . . . . 1 . . . . . . . . 1 2 . . . . Z-Light 1 | . . . . . . . . . . . . . . . . . . . . . . 1 . . Master Thief 2 | . . . . . . . . . . . . . . . 1 1 . . . . . . . . Assembled 5 | . . . . . 5 . . . . . . . . . . . . . . . . . . . Best Kill Streak 9 | 2 4 3 4 4 4 4 4 5 . 2 . 2 7 9 4 3 . 2 5 6 2 8 1 2 Combat Bots Only 8 | . 3 3 3 4 4 4 4 4 . 2 . 2 2 6 4 3 . 2 3 6 1 8 1 2 Max Kills in Single Turn 3 | 1 2 2 2 2 1 2 2 2 . 1 . 1 1 3 1 2 . 1 1 1 1 2 1 1 Gunslinging 1 | . 1 1 . 1 . 1 . 1 . . . . . 1 . 1 . . . . . 1 . . Exploded 2 | . . . . . 1 . 2 . . . . . . . . . . . . . . 2 . . Melee 1 | . . . . . . . . . . . . . . 1 . 1 . 1 1 1 . 1 . . Uniques/NPCs Destroyed 1 | . . . . . 1 . . . . . . . . . . . . . . . . . . . 8R-AWN (-9/Exiles) Combat | -11 -10 -10 -9 -9 -9 -8 -8 -7 -7 -7 -7 -6 -6 -5 -5 -5 -5 -4 -4 -4 -4 -3 -2 -1 -------- Run | Scr Mat Min Mat Min Exi Min Mat Fac Low Low Zio Pro Fac Fac Upp Upp Zhi Pro Fac Ext Cet Res Res Acc Damage Taken 29412 | . 323 42 671 133 659 360 812 1234 . 247 . 88 1326 3915 265 1140 . 1283 355 3651 428 5065 4350 3065 Core 4786 | . 51 20 163 24 84 91 115 50 . . . 42 168 392 44 86 . 268 46 689 136 843 997 477 Absorbed by Shields 925 | . . . . . . . . . . . . . . . . . . . 132 533 260 . . . Reduced by Siege Mode 282 | . . . . . . . . . . . . . . 111 28 10 . . . . . 133 . . Core Remaining (%) 54 | 100 . 71 . . . 9 79 . . . . 86 80 . . . . 21 . . 24 32 31 70 Volleys Fired 599 | 3 25 4 45 9 7 24 45 75 2 23 . 5 34 91 17 35 13 . . . 13 64 16 49 Largest 4 | 2 2 2 3 3 1 3 3 4 4 4 . 4 4 4 4 4 1 . . . 1 3 1 4 Hottest 337 | 80 80 80 135 102 33 76 76 100 98 155 . 103 106 113 105 105 20 . . . 73 209 94 337 Shots Fired 1746 | 6 50 8 134 27 47 72 107 297 8 92 . 20 133 322 68 117 13 . . . 13 129 16 67 Gun 1673 | 6 50 8 134 27 45 72 104 297 8 91 . 20 133 322 68 117 . . . . 13 124 5 29 Cannon 50 | . . . . . . . . . . 1 . . . . . . . . . . . . 11 38 Launcher 10 | . . . . . 2 . 3 . . . . . . . . . . . . . . 5 . . Special 13 | . . . . . . . . . . . . . . . . . 13 . . . . . . . Kinetic 1378 | . . . 70 18 45 72 104 297 8 91 . 20 133 320 68 117 . . . . . 2 13 . Thermal 152 | . . . 53 9 . . . . . 1 . . . 2 . . 13 . . . . 9 2 63 Explosive 7 | . . . . . 2 . . . . . . . . . . . . . . . . 5 . . Electromagnetic 82 | 6 50 8 11 . . . 3 . . . . . . . . . . . . . . . . 4 Phasic 127 | . . . . . . . . . . . . . . . . . . . . . 13 113 1 . Robot Hit Streak 28 | 3 6 3 9 2 14 26 17 16 2 9 . 5 6 19 28 12 12 . . . 17 18 11 9 Robot Miss Streak 9 | 1 2 1 5 4 2 2 7 7 1 9 . 5 9 4 4 5 1 . . . 3 2 2 3 Penetration Max 2 | . . . . . . . . . . . . . 1 2 1 . . . . . . 1 . . Secondary Targets 38 | . 3 2 . 3 . 3 3 7 . . . 1 . 8 2 1 . . . . . 5 . . Max Gunslinging Chain 2 | . 1 1 . 1 . 2 1 2 . . . 1 . 1 1 1 . . . . . 1 . . Autonomous 40 | . . . . . 40 . . . . . . . . . . . . . . . . . . . Shots Hit Robots 1278 | 4 32 6 76 14 45 56 67 189 5 47 . 11 72 228 41 75 12 21 16 69 12 138 13 29 Core Hits 519 | 3 12 3 35 11 14 19 24 64 . 9 . 4 23 95 21 26 4 8 11 37 3 70 7 16 Critical Hits 57 | . . . . . 1 2 1 1 . . . . . 7 6 6 4 2 1 17 1 7 1 . Critical Kills 18 | . . . . . . . . . . . . . . 2 2 1 1 . 1 7 . 4 . . Critical Parts Destroyed 28 | . . . . . . 2 1 1 . . . . . 5 2 4 . 1 . 8 1 3 . . Melee Attacks 271 | . . . . . 5 . . . . . . . . 5 . 4 . 40 33 129 11 44 . . Impact . | . . . . . . . . . . . . . . . . . . . . . . . . . Slashing 137 | . . . . . 5 . . . . . . . . . . 4 . 32 25 42 3 26 . . Piercing 134 | . . . . . . . . . . . . . . 5 . . . 8 8 87 8 18 . . Sneak Attacks 14 | . . . . . 1 . . . . . . . . . . . . 2 3 6 . 2 . . Combat Hostiles 5 | . . . . . . . . . . . . . . . . . . 1 . 4 . . . . Follow-up Attacks 37 | . . . . . . . . . . . . . . . . . . 3 3 26 1 4 . . Damage Inflicted 33639 | 54 536 59 1112 289 1451 547 973 2888 97 719 . 258 1075 5286 871 1205 223 1166 952 4030 507 7840 567 934 Guns 21220 | 54 460 59 1074 271 1087 547 845 2888 97 694 . 258 1075 5129 871 1061 . . . . 342 3731 66 611 Cannons 812 | . . . . . . . . . . 25 . . . . . . . . . . . . 465 322 Explosions 2846 | . 76 . 29 . 228 . 128 . . . . . . . . . . . . . . 2385 . . Melee 8454 | . . . . . 136 . . . . . . . . 137 . 144 . 1166 952 4030 165 1724 . . Ramming 84 | . . . 9 18 . . . . . . . . . 20 . . . . . . . . 36 1 Kinetic 15579 | . . . 367 202 1087 547 845 2888 97 694 . 258 1075 5075 871 1061 . . . . . 41 471 . Thermal 2125 | . 76 . 653 69 . . . . . 25 . . . 54 . . 223 . . . . 142 60 823 Explosive 2613 | . . . . . 228 . . . . . . . . . . . . . . . . 2385 . . Electromagnetic 894 | 54 460 59 83 . . . 128 . . . . . . . . . . . . . . . . 110 Impact . | . . . . . . . . . . . . . . . . . . . . . . . . . Slashing 4252 | . . . . . 136 . . . . . . . . . . 144 . 1103 848 1052 48 921 . . Piercing 4202 | . . . . . . . . . . . . . . 137 . . . 63 104 2978 117 803 . . Phasic 3890 | . . . . . . . . . . . . . . . . . . . . . 342 3548 . . Highest Corruption 37 | . . . . . . . 2 5 5 5 5 . 2 6 11 12 12 12 . 3 8 37 6 10 Average Corruption 7 | . . . . . . . 2 3 5 5 5 . 1 5 10 11 12 12 . 1 6 19 5 5 Corruption Purged . | . . . . . . . . . . . . . . . . . . . . . . . . . Effects 283 | . . . . . . . 8 21 7 18 2 . 5 27 33 54 10 24 . 3 12 43 1 15 Message Errors 45 | . . . . . . . 2 4 2 2 1 . . 5 11 4 1 4 . . 2 4 1 2 Matter Fused 34 | . . . . . . . . 3 . 5 . . . 6 . 8 . 3 . . 1 5 . 3 Heat Flow Errors 23 | . . . . . . . . 2 1 . . . 3 3 2 4 1 2 . . 2 3 . . Energy Discharges 25 | . . . . . . . 1 . 3 2 1 . . 1 2 4 2 . . 1 1 3 . 4 Parts Rejected 3 | . . . . . . . . . . . . . . . . . . 2 . . . 1 . . Data Loss (minor) 20 | . . . . . . . 2 . 1 4 . . . 3 2 1 . 1 . . 2 3 . 1 Data Loss (major) 6 | . . . . . . . . . . . . . . 1 1 3 . . . . 1 . . . Misfires 3 | . . . . . . . . 1 . . . . . . 1 . . . . . . . . 1 Alerts 2 | . . . . . . . . . . . . . . . . . . 1 . . . 1 . . Misdirections 31 | . . . . . . . . . . . . . . . 6 11 4 6 . . . 2 . 2 Targeting Errors 81 | . . . . . . . 3 9 . 5 . . 2 8 7 14 2 5 . 2 3 19 . 2 Weapon Failures 10 | . . . . . . . . 2 . . . . . . 1 5 . . . . . 2 . . Overload Shots . | . . . . . . . . . . . . . . . . . . . . . . . . . Overflow Damage 437 | . 33 . . . 42 . . . . . . . . 2 . . . 34 . 6 37 268 . 15 Projectiles 15 | . . . . . . . . . . . . . . . . . . . . . . . . 15 Explosions 328 | . 33 . . . 42 . . . . . . . . . . . . . . . . 253 . . Melee 94 | . . . . . . . . . . . . . . 2 . . . 34 . 6 37 15 . . Knockbacks . | . . . . . . . . . . . . . . . . . . . . . . . . . Impact . | . . . . . . . . . . . . . . . . . . . . . . . . . Kinetic . | . . . . . . . . . . . . . . . . . . . . . . . . . Secondary . | . . . . . . . . . . . . . . . . . . . . . . . . . Self-Inflicted Damage 149 | . 68 . . . . . . . . . . . . . . . . . . . . 79 2 . Shots 3 | . 2 . . . . . . . . . . . . . . . . . . . . 1 . . Rammed 26 | . . . 2 1 . . . . . . . . . 1 . . . . . . . . 21 1 Targets Rammed 26 | . . . 2 1 . . . . . . . . . 1 . . . . . . . . 21 1 Kicked . | . . . . . . . . . . . . . . . . . . . . . . . . . Crushed . | . . . . . . . . . . . . . . . . . . . . . . . . . Highest Temperature 423 | 36 132 72 423 89 16 371 362 202 206 420 . 130 219 316 165 258 111 182 . 99 87 189 136 231 Average Temperature 85 | 17 44 37 84 27 8 140 146 58 86 159 . 65 78 105 51 73 70 83 . 33 51 92 76 63 Received Heat Transfer 3553 | . 108 . 249 33 40 117 171 171 . 24 . . 108 645 36 120 . 96 20 727 9 273 468 138 Effects 8 | . . . 2 . . . 4 . . 2 . . . . . . . . . . . . . . Shutdowns 1 | . . . 1 . . . . . . . . . . . . . . . . . . . . . Energy Bleed 3 | . . . . . . . 1 . . 2 . . . . . . . . . . . . . . Interference 2 | . . . . . . . 2 . . . . . . . . . . . . . . . . . Short Circuit 1 | . . . . . . . 1 . . . . . . . . . . . . . . . . . Damage (minor) 1 | . . . 1 . . . . . . . . . . . . . . . . . . . . . Siege Activations 12 | . . . . . . . . . . . . . . 6 1 2 . . . . . 3 . . Total Turns 228 | . . . . . . . . . . . . . . 97 27 6 . . . . . 98 . . Longest Duration 76 | . . . . . . . . . . . . . . 33 27 5 . . . . . 76 . . Robots Corrupted 1 | . 1 . . . . . . . . . . . . . . . . . . . . . . . Combat Hostiles 1 | . 1 . . . . . . . . . . . . . . . . . . . . . . . Parts Fried 9 | . 4 1 . . . . . . . . . . . . . . . . . . . . . 4 Impact Corruptions . | . . . . . . . . . . . . . . . . . . . . . . . . . Robots Melted . | . . . . . . . . . . . . . . . . . . . . . . . . . Combat Hostiles . | . . . . . . . . . . . . . . . . . . . . . . . . . Parts Melted 6 | . 1 . 1 . . . . . . . . . . 1 . . . . . 2 . 1 . . Heat Transferred 3468 | . 150 . 1382 148 . . . . . 50 . . . 74 . . 481 . . . . 221 74 888 Parts Sabotaged 4 | . . . . . . . . . . . . . . . . . . . . . . 2 . 2 Parts Stolen 9 | . . . . . . . . . 1 3 . . . . . 5 . . . . . . . . Parts Stripped . | . . . . . . . . . . . . . . . . . . . . . . . . . Power Chain Reactions 3 | . 2 . 1 . . . . . . . . . . . . . . . . . . . . . Missiles Intercepted . | . . . . . . . . . . . . . . . . . . . . . . . . . Alert | -11 -10 -10 -9 -9 -9 -8 -8 -7 -7 -7 -7 -6 -6 -5 -5 -5 -5 -4 -4 -4 -4 -3 -2 -1 ------- Run | Scr Mat Min Mat Min Exi Min Mat Fac Low Low Zio Pro Fac Fac Upp Upp Zhi Pro Fac Ext Cet Res Res Acc Peak Influence 3241 | 10 296 124 345 213 . 171 223 360 . . . . 477 633 . . . . 388 3241 2245 2297 1353 1363 Initial 1756 | . 6 54 48 123 . . . 53 . . . . 259 182 . . . . 25 189 1756 1347 1266 736 Average 615 | 3 135 91 208 145 . 120 91 127 . . . . 354 378 . . . . 121 1137 1973 1780 1248 1097 Maximum Alert Level 5 | . 1 . 1 1 . . 1 1 . . . . 2 2 . . . . 1 5 5 5 4 4 Low Security (%) 38 | 100 71 100 45 58 . 100 95 79 . . . . . 20 . . . . 84 2 . . . . Level 1 20 | . 28 . 54 41 . . 4 20 . . . . 65 27 . . . . 15 8 . . . . Level 2 11 | . . . . . . . . . . . . . 34 51 . . . . . 42 . . . . Level 3 3 | . . . . . . . . . . . . . . . . . . . . 7 . . . 33 Level 4 14 | . . . . . . . . . . . . . . . . . . . . 6 . 50 100 66 Level 5 9 | . . . . . . . . . . . . . . . . . . . . 13 88 50 . . High Security 2 | . . . . . . . . . . . . . . . . . . . . 18 11 . . . Max Security . | . . . . . . . . . . . . . . . . . . . . . . . . . Squads Dispatched 60 | . 4 . 3 . . . 3 5 . . . . 3 5 . . . 1 . 11 . 14 4 7 Investigation 16 | . 3 . 1 . . . 1 3 . . . . 2 . . . . . . 2 . 1 2 1 Extermination 9 | . . . . . . . . 1 . . . . 1 2 . . . . . . . 3 . 2 Reinforcement 12 | . 1 . 2 . . . 2 1 . . . . . 2 . . . . . 2 . 2 . . Assault 23 | . . . . . . . . . . . . . . 1 . . . 1 . 7 . 8 2 4 Garrison . | . . . . . . . . . . . . . . . . . . . . . . . . . Intercept . | . . . . . . . . . . . . . . . . . . . . . . . . . Construction Impeded 2 | . . . . . . . . . . . . . . 1 . . . . . . . 1 . . Haulers Reinforced 2 | . . . . . . . . . . . . . . 1 . . . . . . . 1 . . Stealth | -11 -10 -10 -9 -9 -9 -8 -8 -7 -7 -7 -7 -6 -6 -5 -5 -5 -5 -4 -4 -4 -4 -3 -2 -1 --------- Run | Scr Mat Min Mat Min Exi Min Mat Fac Low Low Zio Pro Fac Fac Upp Upp Zhi Pro Fac Ext Cet Res Res Acc Distress Signals 10 | . . . . . . . . . . . . . . 3 . . . . . 1 2 1 1 2 Communications Jammed . | . . . . . . . . . . . . . . . . . . . . . . . . . Distress Signals . | . . . . . . . . . . . . . . . . . . . . . . . . . Times Spotted 620 | . 17 3 24 13 7 5 17 31 1 6 . 8 19 50 7 15 . 22 13 108 21 63 50 120 Peak Tracking Total 24 | . 2 3 5 4 8 3 6 4 1 2 . 4 6 10 5 3 . 12 5 24 5 12 21 19 Tactical Retreats 51 | . 1 . 2 . . . 2 1 . . . 1 . 4 . . . 3 1 6 . 5 7 18 Traps | -11 -10 -10 -9 -9 -9 -8 -8 -7 -7 -7 -7 -6 -6 -5 -5 -5 -5 -4 -4 -4 -4 -3 -2 -1 ------- Run | Scr Mat Min Mat Min Exi Min Mat Fac Low Low Zio Pro Fac Fac Upp Upp Zhi Pro Fac Ext Cet Res Res Acc Traps Triggered 20 | . 1 . . . . . 1 5 . . . . 4 2 . . . . . 2 . 1 1 3 Indirectly . | . . . . . . . . . . . . . . . . . . . . . . . . . Trap Hack Attempts . | . . . . . . . . . . . . . . . . . . . . . . . . . Triggered . | . . . . . . . . . . . . . . . . . . . . . . . . . Disarmed . | . . . . . . . . . . . . . . . . . . . . . . . . . Reprogrammed . | . . . . . . . . . . . . . . . . . . . . . . . . . Reused . | . . . . . . . . . . . . . . . . . . . . . . . . . Traps Extracted . | . . . . . . . . . . . . . . . . . . . . . . . . . Installed . | . . . . . . . . . . . . . . . . . . . . . . . . . Triggered 3 | . . . . . . . . . . . . . . . . 3 . . . . . . . . Machines | -11 -10 -10 -9 -9 -9 -8 -8 -7 -7 -7 -7 -6 -6 -5 -5 -5 -5 -4 -4 -4 -4 -3 -2 -1 ---------- Run | Scr Mat Min Mat Min Exi Min Mat Fac Low Low Zio Pro Fac Fac Upp Upp Zhi Pro Fac Ext Cet Res Res Acc Machines Disabled 37 | . 1 . 1 . 3 . 1 1 . . . . . 4 1 . . . 3 12 6 2 . 2 Max in Single Turn 2 | . 1 . 1 . 2 . 1 1 . . . . . 2 1 . . . 1 1 1 1 . 1 Garrison Access 2 | . . . . . . . . . . . . . . 1 . . . . . . . . . 1 Energy Cycler 1 | . . . . . . . . . . . . . . . . . . . . 1 . . . . Machines Sabotaged . | . . . . . . . . . . . . . . . . . . . . . . . . . Garrisons Compromised . | . . . . . . . . . . . . . . . . . . . . . . . . . Overloaded Fab Kills . | . . . . . . . . . . . . . . . . . . . . . . . . . Fab Network Shutdowns . | . . . . . . . . . . . . . . . . . . . . . . . . . Hacking | -11 -10 -10 -9 -9 -9 -8 -8 -7 -7 -7 -7 -6 -6 -5 -5 -5 -5 -4 -4 -4 -4 -3 -2 -1 --------- Run | Scr Mat Min Mat Min Exi Min Mat Fac Low Low Zio Pro Fac Fac Upp Upp Zhi Pro Fac Ext Cet Res Res Acc Machines Accessed 38 | . 5 . 7 1 1 . 6 5 . . . . 2 3 . . 5 . 1 . . 1 . 1 Terminals 17 | . 4 . 6 . . . 5 2 . . . . . . . . . . . . . . . . Fabricators 5 | . . . . . . . . 1 . . . . 1 2 . . . . . . . 1 . . Repair Stations 2 | . . . . . . . . 1 . . . . 1 . . . . . . . . . . . Recycling Units 2 | . 1 . 1 . . . . . . . . . . . . . . . . . . . . . Scanalyzers 3 | . . . . . . . 1 1 . . . . . . . . . . 1 . . . . . Garrison Access 2 | . . . . . . . . . . . . . . 1 . . . . . . . . . 1 Total Hacks 102 | . 15 . 17 1 1 . 18 16 . . . . 6 4 . . 18 . 3 . . 1 . 2 Successful 59 | . 7 . 5 1 1 . 10 9 . . . . 1 3 . . 18 . 3 . . . . 1 Failed 43 | . 8 . 12 . . . 8 7 . . . . 5 1 . . . . . . . 1 . 1 Catastrophic 9 | . . . 4 . . . 3 . . . . . 1 . . . . . . . . 1 . . Database Lockouts . | . . . . . . . . . . . . . . . . . . . . . . . . . Manual 142 | . 12 . 10 . 1 . 8 1 . . 1 . 4 10 . . . . 4 39 14 8 4 26 Terminals 46 | . 13 . 14 . . . 15 4 . . . . . . . . . . . . . . . . Fabricators 9 | . . . . . . . . 3 . . . . 2 3 . . . . . . . 1 . . Repair Stations 8 | . . . . . . . . 4 . . . . 4 . . . . . . . . . . . Recycling Units 5 | . 2 . 3 . . . . . . . . . . . . . . . . . . . . . Scanalyzers 11 | . . . . . . . 3 5 . . . . . . . . . . 3 . . . . . Garrison Access 3 | . . . . . . . . . . . . . . 1 . . . . . . . . . 2 Terminal Hacks 32 | . 3 . 2 1 1 . 6 1 . . . . . . . . 18 . . . . . . . Record 6 | . . . . . . . . . . . . . . . . . 6 . . . . . . . Part Schematic 4 | . . . . . . . . . . . . . . . . . 4 . . . . . . . Robot Analysis 6 | . 2 . . . . . . . . . . . . . . . 4 . . . . . . . Prototype ID Bank 6 | . . . . . . . 2 . . . . . . . . . 4 . . . . . . . Open Door 1 | . . . . 1 . . . . . . . . . . . . . . . . . . . . Branch Access Points 1 | . . . . . . . 1 . . . . . . . . . . . . . . . . . Alert Level 1 | . . . . . . . 1 . . . . . . . . . . . . . . . . . Unreport Threat 1 | . . . . . . . 1 . . . . . . . . . . . . . . . . . Hauler Manifests 2 | . . . 1 . . . 1 . . . . . . . . . . . . . . . . . Registered Components 1 | . . . 1 . . . . . . . . . . . . . . . . . . . . . Zone Layout 2 | . 1 . . . . . . 1 . . . . . . . . . . . . . . . . EX-Prototype ID Bank 1 | . . . . . 1 . . . . . . . . . . . . . . . . . . . Fabricator Hacks 3 | . . . . . . . . 1 . . . . . 2 . . . . . . . . . . Build 3 | . . . . . . . . 1 . . . . . 2 . . . . . . . . . . Repair Station Hacks 3 | . . . . . . . . 2 . . . . 1 . . . . . . . . . . . Scan Component 2 | . . . . . . . . 1 . . . . 1 . . . . . . . . . . . Repair 1 | . . . . . . . . 1 . . . . . . . . . . . . . . . . Recycling Unit Hacks 2 | . 1 . 1 . . . . . . . . . . . . . . . . . . . . . Report Inventory 2 | . 1 . 1 . . . . . . . . . . . . . . . . . . . . . Scanalyzer 9 | . . . . . . . 2 4 . . . . . . . . . . 3 . . . . . Insert Component 5 | . . . . . . . 1 2 . . . . . . . . . . 2 . . . . . Analyze 4 | . . . . . . . 1 2 . . . . . . . . . . 1 . . . . . Garrison Access Hacks 2 | . . . . . . . . . . . . . . 1 . . . . . . . . . 1 Seal Access 2 | . . . . . . . . . . . . . . 1 . . . . . . . . . 1 Unauthorized Hacks 8 | . 3 . 2 . . . 2 1 . . . . . . . . . . . . . . . . Terminals 5 | . 2 . 1 . . . 2 . . . . . . . . . . . . . . . . . Assimilate 1 | . 1 . . . . . . . . . . . . . . . . . . . . . . . Botnet 4 | . 1 . 1 . . . 2 . . . . . . . . . . . . . . . . . Fabricators 1 | . . . . . . . . 1 . . . . . . . . . . . . . . . . Download 1 | . . . . . . . . 1 . . . . . . . . . . . . . . . . Repair Stations . | . . . . . . . . . . . . . . . . . . . . . . . . . Recycling Units 2 | . 1 . 1 . . . . . . . . . . . . . . . . . . . . . Tunnel 2 | . 1 . 1 . . . . . . . . . . . . . . . . . . . . . Scanalyzers . | . . . . . . . . . . . . . . . . . . . . . . . . . Garrison Access . | . . . . . . . . . . . . . . . . . . . . . . . . . Data Cores Recovered . | . . . . . . . . . . . . . . . . . . . . . . . . . Used . | . . . . . . . . . . . . . . . . . . . . . . . . . Hacking Detections 22 | . 4 . 5 . . . 5 4 . . . . 2 1 . . . . . . . 1 . . Full Trace Events 6 | . 1 . . . . . 1 2 . . . . 2 . . . . . . . . . . . Feedback Events . | . . . . . . . . . . . . . . . . . . . . . . . . . Feedback Blocked . | . . . . . . . . . . . . . . . . . . . . . . . . . Robot Schematics Acquired 3 | . . . . . . . . . . . . . . . . . . . . 3 . . . . Robots Built . | . . . . . . . . . . . . . . . . . . . . . . . . . Matter . | . . . . . . . . . . . . . . . . . . . . . . . . . Time . | . . . . . . . . . . . . . . . . . . . . . . . . . Total Robot Build Rating . | . . . . . . . . . . . . . . . . . . . . . . . . . Part Schematics Acquired 32 | . . . . . . . 1 2 . . . . . . . . 4 . 1 24 . . . . Parts Built 5 | . . . . . . . . 1 . . . . . 4 . . . . . . . . . . Matter 768 | . . . . . . . . 212 . . . . . 556 . . . . . . . . . . Time 261 | . . . . . . . . 53 . . . . . 208 . . . . . . . . . . Total Part Build Rating 42 | . . . . . . . . 6 . . . . . 36 . . . . . . . . . . Parts Repaired 1 | . . . . . . . . 1 . . . . . . . . . . . . . . . . Time 30 | . . . . . . . . 30 . . . . . . . . . . . . . . . . Parts Recycled . | . . . . . . . . . . . . . . . . . . . . . . . . . Recycled Matter . | . . . . . . . . . . . . . . . . . . . . . . . . . Retrieved Matter . | . . . . . . . . . . . . . . . . . . . . . . . . . Retrieved Components . | . . . . . . . . . . . . . . . . . . . . . . . . . Parts Scanalyzed 4 | . . . . . . . 1 2 . . . . . . . . . . 1 . . . . . Part Schematics Acquired 3 | . . . . . . . 1 1 . . . . . . . . . . 1 . . . . . Parts Damaged 1 | . . . . . . . . 1 . . . . . . . . . . . . . . . . Bothacking | -11 -10 -10 -9 -9 -9 -8 -8 -7 -7 -7 -7 -6 -6 -5 -5 -5 -5 -4 -4 -4 -4 -3 -2 -1 ------------ Run | Scr Mat Min Mat Min Exi Min Mat Fac Low Low Zio Pro Fac Fac Upp Upp Zhi Pro Fac Ext Cet Res Res Acc Used RIF Installer . | . . . . . . . . . . . . . . . . . . . . . . . . . Robots Hacked . | . . . . . . . . . . . . . . . . . . . . . . . . . Non-combat . | . . . . . . . . . . . . . . . . . . . . . . . . . Combat . | . . . . . . . . . . . . . . . . . . . . . . . . . Robot Hacks Applied . | . . . . . . . . . . . . . . . . . . . . . . . . . Relay Couplers Released . | . . . . . . . . . . . . . . . . . . . . . . . . . Robots Rewired 17 | . . . . . . . . . . . . . . . 1 . . . . 16 . . . . Allies Hacked 9 | . . . . . . . . . . . . . 1 5 . . . . . 3 . . . . Hacks Repelled . | . . . . . . . . . . . . . . . . . . . . . . . . . Allies | -11 -10 -10 -9 -9 -9 -8 -8 -7 -7 -7 -7 -6 -6 -5 -5 -5 -5 -4 -4 -4 -4 -3 -2 -1 -------- Run | Scr Mat Min Mat Min Exi Min Mat Fac Low Low Zio Pro Fac Fac Upp Upp Zhi Pro Fac Ext Cet Res Res Acc Total Allies 94 | . . . . 3 . . . . . . 7 . 3 5 1 . . . 3 33 12 4 6 17 Largest Group 17 | . . . . 3 3 . . . . . 7 7 6 5 1 1 . . 2 17 13 15 4 6 Highest-Rated Group 1380 | . . . . 40 40 . . . . . 226 226 212 350 49 49 . . 206 1012 1326 1380 244 552 Highest-Rated Ally 156 | . . . . 16 16 . . . . . 40 40 70 70 49 49 . . 103 156 156 149 122 114 Zionite Dispatches 25 | . . . . . . . . . . . . . 2 3 . . . . 2 4 3 3 2 6 Heavy 5 | . . . . . . . . . . . . . . . . . . . 1 . 2 1 1 . Light 6 | . . . . . . . . . . . . . 1 1 . . . . . 1 1 . . 2 Recon 2 | . . . . . . . . . . . . . 1 . . . . . . 1 . . . . Fire 3 | . . . . . . . . . . . . . . . . . . . . 1 . . 1 1 Hacker 2 | . . . . . . . . . . . . . . . . . . . . . . . . 2 Explosive Resupply 1 | . . . . . . . . . . . . . . . . . . . . . . 1 . . Offense Resupply 1 | . . . . . . . . . . . . . . 1 . . . . . . . . . . Defense Resupply 1 | . . . . . . . . . . . . . . . . . . . 1 . . . . . Infowar Resupply 2 | . . . . . . . . . . . . . . 1 . . . . . 1 . . . . Hacking Resupply 2 | . . . . . . . . . . . . . . . . . . . . . . 1 . 1 Total Orders 11 | . . . . . 1 . . . . . . . . 2 . . . 2 1 1 . 3 . 1 STAY 1 | . . . . . 1 . . . . . . . . . . . . . . . . . . . DROP 7 | . . . . . . . . . . . . . . 2 . . . . 1 1 . 2 . 1 PICKUP 1 | . . . . . . . . . . . . . . . . . . . . . . 1 . . EXPLORE 2 | . . . . . . . . . . . . . . . . . . 2 . . . . . . Ally Attacks 769 | . . . . 14 8 . . . . . . 43 59 29 23 15 . . 9 317 95 82 12 63 Total Damage 27735 | . . . . 187 60 . . . . . . 904 1259 655 270 437 . . 736 10344 4378 4494 781 3230 Kills 156 | . . . . 6 . . . . . . . 9 11 2 . 2 . . 4 64 17 18 2 21 Allies Corrupted 4 | . . . . . 1 . . . . . . . 1 . . . . . . 1 . . . 1 Allies Melted . | . . . . . . . . . . . . . . . . . . . . . . . . . Intel | -11 -10 -10 -9 -9 -9 -8 -8 -7 -7 -7 -7 -6 -6 -5 -5 -5 -5 -4 -4 -4 -4 -3 -2 -1 ------- Run | Scr Mat Min Mat Min Exi Min Mat Fac Low Low Zio Pro Fac Fac Upp Upp Zhi Pro Fac Ext Cet Res Res Acc Robot Analysis Total 6 | . 2 . . . . . . . . . . . . . . . 4 . . . . . . . Derelict Logs Recovered 12 | . . . . 2 . . . . 1 1 1 1 . . 2 2 . 2 . . . . . . Drone Launches 2 | . . . . . . . . . . . . . . . . . . 2 . . . . . . Drone Recoveries 2 | . . . . . . . . . . . . . . . . . . 2 . . . . . . Zionite Intel Received 10 | . . . . . . . . . . . . . . 1 . . . . . 6 1 . . 2 Branch Access 1 | . . . . . . . . . . . . . . 1 . . . . . . . . . . Emergency Access 1 | . . . . . . . . . . . . . . . . . . . . 1 . . . . Guard Positions 1 | . . . . . . . . . . . . . . . . . . . . 1 . . . . Component Stockpiles 1 | . . . . . . . . . . . . . . . . . . . . 1 . . . . Component Schematics 1 | . . . . . . . . . . . . . . . . . . . . 1 . . . . Prototype Schematics 1 | . . . . . . . . . . . . . . . . . . . . 1 . . . . Unaware Schematics 1 | . . . . . . . . . . . . . . . . . . . . 1 . . . . Unaware Analyses 2 | . . . . . . . . . . . . . . . . . . . . . 1 . . 1 Trap Installations 1 | . . . . . . . . . . . . . . . . . . . . . . . . 1 Exploration | -11 -10 -10 -9 -9 -9 -8 -8 -7 -7 -7 -7 -6 -6 -5 -5 -5 -5 -4 -4 -4 -4 -3 -2 -1 ------------- Run | Scr Mat Min Mat Min Exi Min Mat Fac Low Low Zio Pro Fac Fac Upp Upp Zhi Pro Fac Ext Cet Res Res Acc Turns Passed 16344 | 66 513 297 1070 949 1148 445 654 1438 370 348 1020 306 718 1233 533 667 135 284 255 961 501 1146 378 909 Spaces Moved 12816 | 49 384 252 581 635 698 238 344 920 328 251 834 205 456 568 307 458 191 467 303 841 258 487 470 2291 Core 165 | 2 . . . . . . . . . . . . . . . 1 . . . 2 16 15 129 . Treads 1575 | . . . 82 1 207 . . . . . . . . 271 307 226 . . . . 24 436 21 . Legs 1025 | . . . . . 304 238 252 . . . . . . . . . . . . . 218 13 . . Wheels 5457 | 47 384 252 499 634 187 . 92 920 328 251 834 205 456 297 . . . . . . . 19 52 . Hover 1785 | . . . . . . . . . . . . . . . . . 82 467 303 839 . 4 90 . Flight 2809 | . . . . . . . . . . . . . . . . 231 109 . . . . . 178 2291 Fastest Speed 19 | 50 90 110 120 140 120 150 120 110 110 110 110 115 115 107 145 37 37 27 40 24 110 50 28 19 Average Speed 96 | 85 107 110 145 140 149 150 141 123 110 110 114 115 123 139 147 109 38 39 47 39 126 152 57 27 Slowest Speed 2600 | 90 120 110 220 220 200 150 150 130 110 110 170 115 150 200 165 2600 51 42 92 450 300 160 160 117 Overloaded Moves 37 | . . . . . . . . . . . . . . . . . . 23 . 14 . . . . Propulsion Burnouts . | . . . . . . . . . . . . . . . . . . . . . . . . . Robots Hopped 41 | . . . . . . . . . . . . . . . . . . . . . . . 3 38 Cave-ins Triggered . | . . . . . . . . . . . . . . . . . . . . . . . . . Teleports 1 | . . . . . . . . . . . . . . . . . . . . . . 1 . . Exploration Rate (%) 47 | 4 67 55 50 99 47 52 42 22 50 51 86 41 14 18 52 44 63 73 8 83 79 19 16 58 Regions Visited 24 Branch Regions 14 Pre-discovered Areas 11 | . 1 . 1 1 . . . . 1 . 1 . . . . 1 3 2 . . . . . . Known Exits Taken 14 | . . . . . . . 1 1 1 1 1 1 1 1 1 1 1 1 1 . 1 . . . Unknown Exits Taken 10 | 1 1 1 1 1 1 1 . . . . . . . . . . . . . 1 . 1 1 . Scrap Searched 23 | . . 1 . 1 . 1 . . 8 2 4 . . . 2 2 . 2 . . . . . . Spaces Dug 118 | . . . . . . . . . . . . . . 1 . . . 8 . 1 . 98 . 10 Terrain Destroyed 348 | . 3 . 2 . 46 2 2 . . 3 . . 1 10 18 43 . 8 . 1 . 182 1 26 Melee 10 | . . . . . . . . . . . . . . 1 . . . 8 . 1 . . . . Projectile 157 | . . . . . 34 2 2 . . 3 . . 1 9 18 43 . . . . . 18 1 26 AOE 181 | . 3 . 2 . 12 . . . . . . . . . . . . . . . . 164 . . Terrain Rammed . | . . . . . . . . . . . . . . . . . . . . . . . . . Walls Destroyed . | . . . . . . . . . . . . . . . . . . . . . . . . . Machines Disabled . | . . . . . . . . . . . . . . . . . . . . . . . . . Actions | -11 -10 -10 -9 -9 -9 -8 -8 -7 -7 -7 -7 -6 -6 -5 -5 -5 -5 -4 -4 -4 -4 -3 -2 -1 --------- Run | Scr Mat Min Mat Min Exi Min Mat Fac Low Low Zio Pro Fac Fac Upp Upp Zhi Pro Fac Ext Cet Res Res Acc Total 15473 | 63 432 263 716 677 792 284 439 1164 334 291 897 268 555 822 356 563 226 535 366 1331 403 699 542 2455 Wait 894 | . 13 5 25 15 . 17 20 120 2 12 58 59 12 73 26 15 . 21 12 192 94 41 5 57 Move 12715 | 48 383 251 580 634 697 237 343 919 327 250 833 204 455 567 306 457 190 466 302 840 257 486 463 2220 Hop 35 | . . . . . . . . . . . . . . . . . . . . . . . 3 32 Pick Up 185 | 5 6 3 19 8 23 1 5 13 2 . 2 . 24 21 3 8 2 5 5 8 3 10 2 7 Fast Attach 236 | 6 1 . 8 1 20 . 7 7 . 1 1 . 7 14 . 11 9 4 6 26 18 23 16 50 Attach 99 | . 2 . 3 . 2 1 4 4 . . . . 10 19 1 8 3 4 1 7 . 14 8 8 Detach 74 | . . . 2 . 4 . 4 2 . . 2 . 5 7 . 6 2 1 2 7 1 9 4 16 Swap 72 | 1 1 . 11 . 5 3 5 5 1 4 . . 5 5 1 4 . 1 2 8 . 7 . 3 Drop 191 | . 1 . 21 9 29 1 6 19 . 1 1 . 3 19 1 15 7 1 6 21 9 6 4 11 Fire 599 | 3 25 4 45 9 7 24 45 75 2 23 . 5 34 91 17 35 13 . . . 13 64 16 49 Melee 210 | . . . . . 5 . . . . . . . . 5 . 4 . 32 30 87 8 39 . . Ram 3 | . . . . . . . . . . . . . . . . . . . . . . . 2 1 Kick . | . . . . . . . . . . . . . . . . . . . . . . . . . Crush 23 | . . . 2 1 . . . . . . . . . 1 . . . . . . . . 19 . Escape Stasis 17 | . . . . . . . . . . . . . . . . . . . . 16 . . . 1 Rewire 120 | . . . . . . . . . . . . . . . 1 . . . . 119 . . . . Trap . | . . . . . . . . . . . . . . . . . . . . . . . . . Miscellaneous . | . . . . . . . . . . . . . . . . . . . . . . . . . Route ------- -11/Scrapyard -10/Materials (discovered 3 exits: *Mat x2 / [*Min]) -10/Mines -9/Materials (discovered 4 exits: *Mat / *Min x2 / [*Sto]) -9/Mines (discovered 4 exits: *Mat x2 / *Exi / *Zio) -9/Exiles -8/Mines -8/Materials -7/Factory -7/Lower Caves -7/Lower Caves -7/Zion -6/Proximity Caves -6/Factory -5/Factory (discovered 2 exits: *Upp x2) -5/Upper Caves -5/Upper Caves -5/Zhirov -4/Proximity Caves -4/Factory (discovered 3 exits: Res / Upp / *Ext) -4/Extension (discovered 3 exits: *Res x2 / *Cet) -4/Cetus (discovered 2 exits: *Res / [*Arc]) -3/Research -2/Research -1/Access To Epsilon Eridani History --------- Turn | Location | Event 24 | -11/Scrapyard | Discovered new exit (range 15) 67 | -11/Scrapyard | Entered Materials 154 | -10/Materials | Discovered new exit (range 15) 307 | -10/Materials | Build established: Mutant 480 | -10/Materials | Discovered new exit (range 16) 550 | -10/Materials | Discovered new exit (range 9) 580 | -10/Materials | Entered Mines 748 | -10/Mines | Assembled infested the area 867 | -10/Mines | Discovered new exit (range 8) 877 | -10/Mines | Entered Materials 877 | -9/Materials | Evolved 2 slots: Utility x1, Weapon x1 1025 | -9/Materials | Discovered new exit (range 12) 1159 | -9/Materials | Discovered new exit (range 7) 1310 | -9/Materials | Discovered new exit (range 5) 1440 | -9/Materials | Build established: Hauler-Gunner 1531 | -9/Materials | Discovered new exit (range 11) 1947 | -9/Materials | Entered Mines 2153 | -9/Mines | Discovered new exit (range 14) 2155 | -9/Mines | Learned location of 1 exit from Materials 2158 | -9/Mines | Learned location of Storage (-9) 2235 | -9/Mines | Deemed a non-threat by the Exiles lab entrance 2237 | -9/Mines | Discovered new exit (range 5) 2332 | -9/Mines | Assisted by bots powering up and referring to "LRC-V3" 2448 | -9/Mines | Found the Drone Emporium 2454 | -9/Mines | Found Prototype Device 2484 | -9/Mines | A Derelict revealed a hidden shortcut to a safe place 2507 | -9/Mines | Received a Rocket Launcher from a helpful Derelict 2551 | -9/Mines | Learned 2 Materials zone layouts 2579 | -9/Mines | Discovered new exit (range 13) 2896 | -9/Mines | Entered Exiles 2896 | -9/Exiles | Accompanied by 3 allies 2931 | -9/Exiles | Met 8R-AWN 2954 | -9/Exiles | Met EX-HEX 2992 | -9/Exiles | Met EX-BIN 3011 | -9/Exiles | Aligned with FarCom system 3013 | -9/Exiles | Given EX-Vault access code 3053 | -9/Exiles | Opened EX-Vault 3063 | -9/Exiles | Found AWS/Gauss 3103 | -9/Exiles | Build established: Hauler-Mutant 3106 | -9/Exiles | Warned to stay clear of 0b10 Research branches 3230 | -9/Exiles | Identified Sensor Drone Bay 3470 | -9/Exiles | Build established: Mutant 3482 | -9/Exiles | Attacked by the Exiles 3486 | -9/Exiles | Core integrity fell below 50% 3518 | -9/Exiles | Destroyed 8R-AWN 3525 | -9/Exiles | Found Prototype Ballistic Gun 3525 | -9/Exiles | Identified 8R-AWN's Boregun 3529 | -9/Exiles | Found Prototype Processor 3529 | -9/Exiles | Identified Exp. Targeting Computer 3533 | -9/Exiles | Found Prototype Protection 3533 | -9/Exiles | Identified 8R-AWN's Armor/EX 3552 | -9/Exiles | Found Prototype Device 3552 | -9/Exiles | Identified AS-neutralizer No. 17b 3832 | -9/Exiles | Build established: Scavenger-Gunner 3893 | -9/Exiles | Found Chronowheel 4025 | -9/Exiles | Discovered new exit (range 14) 4044 | -9/Exiles | Stole two prototypes: Chronowheel, AWS/Gauss 4044 | -9/Exiles | Entered Mines 4247 | -8/Mines | Core integrity fell below 20% 4484 | -8/Mines | Discovered new exit (range 3) 4489 | -8/Mines | Entered Materials 4489 | -8/Materials | Evolved 2 slots: Propulsion x1, Utility x1 4490 | -8/Materials | Identified exit to Factory 5143 | -8/Materials | Entered Factory 5143 | -7/Factory | Evolved 2 slots: Utility x1, Weapon x1 5229 | -7/Factory | Fabricated Adv. Cooling System (x1) 5474 | -7/Factory | Build established: Hauler-Gunner 6350 | -7/Factory | Repaired Enh. Autogun 6567 | -7/Factory | Discovered new exit (range 11) 6579 | -7/Factory | Identified exit to Lower Caves 6581 | -7/Factory | Entered Lower Caves 6667 | -7/Lower Caves | Spotted C0-ZH7(f) 6668 | -7/Lower Caves | Encountered a Master Thief 6669 | -7/Lower Caves | Chronowheel stolen by Master Thief 6868 | -7/Lower Caves | Build established: Hauler-Skirmisher 6939 | -7/Lower Caves | Encountered a Warlord checkpoint 6944 | -7/Lower Caves | Discovered new exit (range 6) 6950 | -7/Lower Caves | Identified exit to Lower Caves 6951 | -7/Lower Caves | Entered another Lower Caves area 7038 | -7/Lower Caves | Attracted the attention of an 0b10 checkpoint 7058 | -7/Lower Caves | Spotted AB-N9H(f) 7059 | -7/Lower Caves | Encountered a Master Thief 7062 | -7/Lower Caves | AWS/Gauss stolen by Master Thief 7064 | -7/Lower Caves | Spotted EZ-NCA(f) 7065 | -7/Lower Caves | Encountered a Master Thief 7071 | -7/Lower Caves | 8R-AWN's Boregun stolen by Master Thief 7096 | -7/Lower Caves | Learned Factory security intel 7175 | -7/Lower Caves | Spotted B-75 Beast 7184 | -7/Lower Caves | Encountered a Warlord checkpoint 7206 | -7/Lower Caves | Destroyed B-75 Beast 7255 | -7/Lower Caves | Spotted MB-70W(f) 7256 | -7/Lower Caves | Encountered a Master Thief 7268 | -7/Lower Caves | Adv. Weapon Cycler stolen by Master Thief 7278 | -7/Lower Caves | Discovered new exit (range 15) 7297 | -7/Lower Caves | Identified exit to Zion 7299 | -7/Lower Caves | Entered Zion 7331 | -7/Zion | Learned Factory emergency access door positions 7398 | -7/Zion | Received a visual enhancement algorithm 7436 | -7/Zion | System corruption cleaned by Quarantine Array 7509 | -7/Zion | Found CR-A16's Pointy Stick 7565 | -7/Zion | Learned location of Armory (-4) 7699 | -7/Zion | Gained Derelict followers 7807 | -7/Zion | Given the Hacking Drone Bay 7809 | -7/Zion | Found Prototype Device 8068 | -7/Zion | Imprinted 8070 | -7/Zion | Declared Zion's savior 8247 | -7/Zion | Discovered new exit (range 14) 8261 | -7/Zion | Identified exit to Proximity Caves 8319 | -7/Zion | Entered Proximity Caves 8319 | -6/Proximity Caves | Accompanied by 7 allies 8458 | -6/Proximity Caves | Learned 4 Factory zone layouts 8580 | -6/Proximity Caves | Discovered new exit (range 10) 8589 | -6/Proximity Caves | Identified exit to Factory 8625 | -6/Proximity Caves | Entered Factory 8625 | -6/Factory | Accompanied by 6 allies 8625 | -6/Factory | Evolved 2 slots: Utility x2 8626 | -6/Factory | Identified Hacking Drone Bay 8963 | -6/Factory | Lost 4 parts (1p1u2w) 9080 | -6/Factory | Zion Light squad teleported in 9142 | -6/Factory | Zion Recon squad teleported in 9179 | -6/Factory | Build established: Hauler-Gunner 9243 | -6/Factory | Discovered new exit (range 15) 9263 | -6/Factory | Identified exit to Factory 9304 | -6/Factory | Found Prototype Protection 9304 | -6/Factory | Identified Zio. Weapon Casing 9343 | -6/Factory | Entered another Factory area 9343 | -5/Factory | Accompanied by 2 allies 9343 | -5/Factory | Evolved 2 slots: Propulsion x1, Utility x1 9511 | -5/Factory | Zion Light squad teleported in 9713 | -5/Factory | Lost 4 parts (2n2w) 9837 | -5/Factory | Lost 5 parts (1p1u3w) 9943 | -5/Factory | First assault squad dispatched 10072 | -5/Factory | Lost 3 parts (1n2w) 10101 | -5/Factory | Fabricated Biometal Heavy Treads (x2) 10139 | -5/Factory | Lost 3 parts (1u2w) 10214 | -5/Factory | Fabricated Adv. Heavy Siege Treads (x2) 10405 | -5/Factory | Build established: Hauler-Tank 10463 | -5/Factory | Retrieved Zion intel report: Branch Access 10463 | -5/Factory | Identified exit to Upper Caves 10464 | -5/Factory | Zion Offense Resupply teleported in 10560 | -5/Factory | Zion Infowar Resupply teleported in 10576 | -5/Factory | Entered Upper Caves 10606 | -5/Upper Caves | Attracted the attention of an 0b10 outpost 10648 | -5/Upper Caves | System corruption reached 10% 10732 | -5/Upper Caves | Learned location of 1 exit from Factory 10746 | -5/Upper Caves | Spotted 21-FYV(f) 10747 | -5/Upper Caves | Encountered a Master Thief 10764 | -5/Upper Caves | Build established: Hauler-Gunner 10968 | -5/Upper Caves | Learned Factory terminal intel 11003 | -5/Upper Caves | Attracted the attention of an 0b10 checkpoint 11012 | -5/Upper Caves | Destroyed 21-FYV(f) 11075 | -5/Upper Caves | Discovered new exit (range 15) 11094 | -5/Upper Caves | Identified exit to Upper Caves 11109 | -5/Upper Caves | Entered another Upper Caves area 11109 | -5/Upper Caves | Accompanied by 1 ally 11270 | -5/Upper Caves | Attracted the attention of an 0b10 checkpoint 11309 | -5/Upper Caves | Spotted C9-AN4(f) 11311 | -5/Upper Caves | Encountered a Master Thief 11311 | -5/Upper Caves | Biometal Heavy Treads stolen by Master Thief 11313 | -5/Upper Caves | Spotted 84-C0R(f) 11314 | -5/Upper Caves | Encountered a Master Thief 11315 | -5/Upper Caves | Biometal Heavy Treads stolen by Master Thief 11446 | -5/Upper Caves | Lost 3 parts (1u2w) 11513 | -5/Upper Caves | Spotted 4C-FI0(f) 11514 | -5/Upper Caves | Encountered a Master Thief 11529 | -5/Upper Caves | Hrd. Heavy Armor Plating stolen by Master Thief 11531 | -5/Upper Caves | Destroyed 4C-FI0(f) 11533 | -5/Upper Caves | Spotted NP-WQV(f) 11535 | -5/Upper Caves | Encountered a Master Thief 11541 | -5/Upper Caves | Spotted S7-PAB(f) 11542 | -5/Upper Caves | Encountered a Master Thief 11545 | -5/Upper Caves | Adv. Heavy Siege Treads stolen by Master Thief 11546 | -5/Upper Caves | Adv. Heavy Siege Treads stolen by Master Thief 11621 | -5/Upper Caves | Core integrity fell below 50% 11775 | -5/Upper Caves | Discovered new exit (range 4) 11776 | -5/Upper Caves | Identified exit to Zhirov 11776 | -5/Upper Caves | Entered Zhirov 11776 | -5/Zhirov | Discovered new exit (range 3) 11792 | -5/Zhirov | Learned location of Quarantine (-3) 11792 | -5/Zhirov | Learned location of Testing (-2) 11792 | -5/Zhirov | Learned location of Command (-1) 11805 | -5/Zhirov | Found Alien Artifact 11805 | -5/Zhirov | Identified Integrated Reactor 11805 | -5/Zhirov | Installed Integrated Reactor, increased core energy generation (+10) 11896 | -5/Zhirov | Found Alien Artifact 11911 | -5/Zhirov | Identified exit to Proximity Caves 11911 | -5/Zhirov | Entered Proximity Caves 11915 | -4/Proximity Caves | Build established: Scavenger-Mutant 12043 | -4/Proximity Caves | Attracted the attention of an 0b10 outpost 12085 | -4/Proximity Caves | Lost 3 parts (1n2u) 12112 | -4/Proximity Caves | Found Alien Artifact 12112 | -4/Proximity Caves | Identified Core Expander 12112 | -4/Proximity Caves | Installed Core Expander, added new Utility slot 12186 | -4/Proximity Caves | Discovered new exit (range 17) 12194 | -4/Proximity Caves | Identified exit to Factory 12195 | -4/Proximity Caves | Entered Factory 12195 | -4/Factory | Evolved 2 slots: Utility x2 12196 | -4/Factory | Identified exit to Upper Caves 12197 | -4/Factory | Identified exit to Research 12198 | -4/Factory | Loaded intel: 22 terminal locations 12199 | -4/Factory | Identified Transdimensional Reconstructor 12212 | -4/Factory | Zion Defense Resupply teleported in 12219 | -4/Factory | Found Imp. Powered Armor 12393 | -4/Factory | Spotted B-86 Titan 12400 | -4/Factory | Zion Heavy squad teleported in 12422 | -4/Factory | Revealed the true nature of CR-A16's Pointy Stick 12425 | -4/Factory | Destroyed B-86 Titan 12436 | -4/Factory | Discovered new exit (range 4) 12439 | -4/Factory | Identified exit to Extension 12450 | -4/Factory | Entered Extension 12450 | -4/Extension | Accompanied by 2 allies 12486 | -4/Extension | Rescued a captive Derelict 12487 | -4/Extension | Rescued a captive Derelict 12488 | -4/Extension | Zion Light squad teleported in 12515 | -4/Extension | Rescued a captive Derelict 12518 | -4/Extension | Zion Fire squad teleported in 12612 | -4/Extension | Rescued A7 12623 | -4/Extension | Retrieved Zion intel report: Component Schematics 12624 | -4/Extension | Zion Recon squad teleported in 12632 | -4/Extension | Rescued a captive Derelict 12700 | -4/Extension | First assault squad dispatched 12953 | -4/Extension | Spotted B-86 Titan 12956 | -4/Extension | Spotted B-86 Titan 12965 | -4/Extension | Destroyed B-86 Titan 12969 | -4/Extension | Destroyed B-86 Titan 12997 | -4/Extension | Discovered exit to Research (range 3) 13007 | -4/Extension | Lost 3 parts (1p2u) 13008 | -4/Extension | Retrieved Zion intel report: Component Stockpiles 13031 | -4/Extension | Rescued a captive Derelict 13074 | -4/Extension | Rescued a captive Derelict 13076 | -4/Extension | Retrieved Zion intel report: Emergency Access 13077 | -4/Extension | Zion Infowar Resupply teleported in 13082 | -4/Extension | Found Prototype Processor 13082 | -4/Extension | Identified Exp. Terrain Scan Processor 13107 | -4/Extension | Energy Cycler disabled 13107 | -4/Extension | Rescued a captive Derelict 13108 | -4/Extension | Rescued a captive Derelict 13109 | -4/Extension | Rescued a captive Derelict 13110 | -4/Extension | Rescued a captive Derelict 13116 | -4/Extension | Retrieved Zion intel report: Guard Positions 13134 | -4/Extension | Retrieved Zion intel report: Unaware Schematics 13230 | -4/Extension | Retrieved Zion intel report: Prototype Schematics 13233 | -4/Extension | High security lockdown imminent 13313 | -4/Extension | High security lockdown engaged 13349 | -4/Extension | Discovered new exit (range 23) 13357 | -4/Extension | P-70 Sage assimilated allied 11-9FZ(g) 13394 | -4/Extension | Discovered exit to Research (range 10) 13407 | -4/Extension | P-70 Sage assimilated allied GO-ZVS(i) 13408 | -4/Extension | Core integrity fell below 50% 13411 | -4/Extension | Entered Cetus 13411 | -4/Cetus | Accompanied by 3 allies (A7) 13416 | -4/Cetus | Acquired a Cetus Manufacturing Module code from A7 13441 | -4/Cetus | Lost 21 parts (1p8n11u1w) 13444 | -4/Cetus | Spotted Cetus Guard 13447 | -4/Cetus | Spotted Cetus Guard 13447 | -4/Cetus | Spotted Cetus Guard 13451 | -4/Cetus | Allies destroyed Cetus Guard 13461 | -4/Cetus | Allies destroyed Cetus Guard 13467 | -4/Cetus | Allies destroyed Cetus Guard 13467 | -4/Cetus | Spotted Cetus Guard 13472 | -4/Cetus | Allies destroyed Cetus Guard 13484 | -4/Cetus | Found Prototype Protection 13484 | -4/Cetus | Identified Zio. Heavy Carapace 13487 | -4/Cetus | Found Zio. Weapon Casing 13601 | -4/Cetus | Started Cetus Manufacturing Module 13602 | -4/Cetus | Zion Heavy squad teleported in 13607 | -4/Cetus | Zion Heavy squad teleported in 13611 | -4/Cetus | Escorted A7 to Cetus Mainframe 13626 | -4/Cetus | Manufactured an Enhanced Grunt 13648 | -4/Cetus | Retrieved Zion intel report: Unaware Analyses 13651 | -4/Cetus | Manufactured an Enhanced Grunt 13676 | -4/Cetus | Manufactured an Enhanced Grunt 13701 | -4/Cetus | Manufactured an Enhanced Grunt 13726 | -4/Cetus | Manufactured an Enhanced Grunt 13755 | -4/Cetus | Zion Light squad teleported in 13778 | -4/Cetus | Discovered new exit (range 16) 13839 | -4/Cetus | Spotted Cetus Guard 13843 | -4/Cetus | Spotted Cetus Guard 13844 | -4/Cetus | Spotted Cetus Guard 13844 | -4/Cetus | Spotted Cetus Guard 13848 | -4/Cetus | Allies destroyed Cetus Guard 13852 | -4/Cetus | Discovered exit to Research (range 16) 13853 | -4/Cetus | Allies destroyed Cetus Guard 13855 | -4/Cetus | Allies destroyed Cetus Guard 13855 | -4/Cetus | High security lockdown imminent 13855 | -4/Cetus | Allies destroyed Cetus Guard 13861 | -4/Cetus | Scared off Revision 17 13912 | -4/Cetus | Entered Research 13912 | -3/Research | Accompanied by 13 allies (A7) 13912 | -3/Research | Evolved 2 slots: Power x1, Utility x1 13917 | -3/Research | Received a hacking code to weaken MAIN.C 14018 | -3/Research | Zion Heavy squad teleported in 14088 | -3/Research | Zion Hacking Resupply teleported in 14208 | -3/Research | Zion Explosive Resupply teleported in 14404 | -3/Research | Found Zio. Weapon Casing 14408 | -3/Research | Found Zio. Weapon Casing 14412 | -3/Research | First assault squad dispatched 14527 | -3/Research | Found Prototype Device 14527 | -3/Research | Identified Exp. Thermal Shield 14656 | -3/Research | Destroyed 8 combat bots 14663 | -3/Research | System corruption reached 10% 14935 | -3/Research | System corruption reached 30% 14976 | -3/Research | Lost 15 parts (2p4n6u3w) 14998 | -3/Research | Core integrity fell below 50% 15011 | -3/Research | Warped through subspace 15011 | -3/Research | Discovered new exit (range 13) 15041 | -3/Research | Lost 5 parts (3n2w) 15058 | -3/Research | Entered another Research area 15058 | -2/Research | Evolved 2 slots: Propulsion x2 15170 | -2/Research | Lost 3 parts (2u1w) 15256 | -2/Research | Zion Heavy squad teleported in 15263 | -2/Research | Lost 7 parts (5n2u) 15300 | -2/Research | Build established: Mutant 15308 | -2/Research | First assault squad dispatched 15333 | -2/Research | Core integrity fell below 50% 15342 | -2/Research | Zion Fire squad teleported in 15433 | -2/Research | Discovered new exit (range 5) 15436 | -2/Research | Entered Access 15436 | -1/Access | Evolved 2 slots: Propulsion x2 15447 | -1/Access | Lost 6 parts (3n3u) 15465 | -1/Access | Zion Hacker squad teleported in 15588 | -1/Access | Retrieved Zion intel report: Unaware Analyses 15589 | -1/Access | Zion Light squad teleported in 15686 | -1/Access | First assault squad dispatched 15737 | -1/Access | Lost 4 parts (1n1u2w) 15745 | -1/Access | Zion Hacker squad teleported in 15756 | -1/Access | Found Prototype Processor 15756 | -1/Access | Identified Spectral Analyzer 15779 | -1/Access | Found Prototype Device 15779 | -1/Access | Identified Exp. Shock Absorption System 15793 | -1/Access | Found EM Disruption Field 15868 | -1/Access | Found Prototype Reactor 15868 | -1/Access | Identified Zero-point Reactor 15891 | -1/Access | Zion Light squad teleported in 15905 | -1/Access | Lost 7 parts (1p4n2w) 16005 | -1/Access | Zion Fire squad teleported in 16031 | -1/Access | Lost 5 parts (1p3n1u) 16048 | -1/Access | Spotted B-99 Colossus 16152 | -1/Access | Spotted B-99 Colossus 16152 | -1/Access | Spotted B-99 Colossus 16156 | -1/Access | Zion Hacking Resupply teleported in 16204 | -1/Access | Build established: Hacker-Sprinter 16222 | -1/Access | Retrieved Zion intel report: Trap Installations 16261 | -1/Access | System corruption reached 10% 16291 | -1/Access | Lost 3 parts (1p2n) 16334 | -1/Access | Discovered new exit (range 10) 16345 | *** | Escaped! Last Messages --------------- Imp. Weapon Shielding destroyed. Slug penetrates Sealed Heavy Doors. Impulse Thruster Array destroyed. Main Access Shell breached. EXIT=FOUND Enh. Nova Cannon destroyed. Lyr. Light Armor Plating destroyed. Recoil Nullifier destroyed. Penetrated by Slug. Slug penetrates Sealed Heavy Doors. Penetrated by Slug. Slug penetrates Sealed Heavy Doors. Penetrated by Slug. Exp. Heat Sink destroyed. Slug penetrates Sealed Heavy Doors. System corrupted: Energy discharge (-174). Slug penetrates Sealed Heavy Doors. Penetrated by Slug. Slug penetrates Sealed Heavy Doors. [Achievement: Derelict Escape] Map ----- +----------------------------------------------------+ | ############+########## # "" #????????? | | ???????## #????# # """""" #???###### | | ??#?????# #????# # """""" #???# | | ????????# "" #????# # "" #???# | | ????????# #????# # "" #???# | | ????????# #????# ##############???# | | ????????# #????# #????????????????# " | | ????????# "" #???## ##???????????????# | | ????????# #???#; "#???????????????# | | ????????# #?###; "###?????????????# | | ????????## " " ###?# #?????????????# | | ?????????#""G""#???# #?????????????# | | ?????????#########?# #?????????????# " | | ########## #?# #?????????????# | | ## #?# #?????????????# | | ^ ## """ #?# #?????????????# ! | | ^ ## "Y" #?# #????########## | | ^ # " " #?#"""" """""#????# # | | ^ + #?????" ""???????# # | | ^ # #?????" " "???????# """ # | | ^ ## #?#"""" """""#????#= """ #+##+# | | ####### ## #?# #????# !="" + | | ??????# ## ### "" """ #????# !F"" # | | ??????# ## " # ?" "???????# !""" ###### | | ??????# ############??" "" "???????# #????? | | ??????# #?????????????" "@ "??????## #????? | | ????###+######????????" "??????#""###########?? | | ????# #????????""""""????####"###### ### | | ##### #??????????????????# ## | | + " #??????????????????# !! ## | | ##### """ #?????""""""""""""?# !! ## ### | | ????# """ #?????#"" #?# !! ### #### | | ????# " #?????#"" #?# #?# # | | ????# #?????#"" #?# #?# # | | ????# = #?????#T #?# #?# + | | ????# #?????#"" #?# #?# # | | ????#####/####?????#"" #?# #?# # | | ??????# #########"" " #####/######## # | | ??????# ! %! /!"%" + | | ??????# "%= =%=" #### | | ??????# ########################"######+#+##??? | | ??????## ##????????????????????? ???# ????? | | ???????# #?????????????????????# ?#^ ??? | | ???????# #?????????????????????# " # " ? | | ???????# #?????????????????????# """ !# """ | | ???????# #?????????????????????# """ #^ """ | | ???????# #?????????????????????# " # ^^" | | ???????# #?????????????????????# # [ | | ??????? ?????????????????????# # | | | ??????? ?????????????????????# ######### | +----------------------------------------------------+ Best States ------------- Heat Dissipation 165 Coolant Potential 65 Energy Generation 63 Energy Capacity 1600 Matter Stores 300 Matter Capacity 300 Sight Range 24 Robot Scan Range 16 Terrain Scan Range 24 Terrain Scan Density 1010 Additional Mass Support 12 Armor Coverage 1425 Resistance: KI 30 Resistance: TH 30 Resistance: EX 90 Resistance: EM 50 Propulsion Shielding 90 Utility Shielding 66 Weapon Shielding 100 Weapon Cycling 25 Melee Speed Boost 30 Evasion (%) 71 Targeting Accuracy 12 Melee Accuracy 20 Target Analysis 8 Core Analysis 10 Recoil Reduction 6 Salvage Targeting 1 Offensive Hacking 14 Defensive Hacking 34 Item Schematics ----------------- Adv. Weapon Cycler | -8/Materials | Scanalyzed Adv. Cooling System | -7/Factory | Downloaded Enh. Autogun | -7/Factory | Scanalyzed Assault Drone Bay | -5/Zhirov | Free Exp. Heat Sink | -5/Zhirov | Free Exp. Optical Array | -5/Zhirov | Free Imp. Arc Thrower | -5/Zhirov | Free Cld. Gravmag System | -4/Factory | Scanalyzed Nuclear Pulse Thruster | -4/Extension | Z-intel Imp. Linear Gravjet | -4/Extension | Z-intel Imp. Thermal Generator | -4/Extension | Z-intel Hvy. Machine Gun | -4/Extension | Z-intel Hvy. Siege Treads | -4/Extension | Z-intel Micro-nuke Launcher | -4/Extension | Z-intel Plasma Cutter | -4/Extension | Z-intel Imp. Melee Analysis Suite | -4/Extension | Z-intel Gyrokinetic Inverter | -4/Extension | Z-intel Energy Filter | -4/Extension | Z-intel Matter Filter | -4/Extension | Z-intel EM Shield | -4/Extension | Z-intel Com. Wheel | -4/Extension | Z-intel Thunder Hammer | -4/Extension | Z-intel Exp. Flexi-carbon Leg | -4/Extension | Z-intel Com. Ion Cannon | -4/Extension | Z-intel Ionic Axe | -4/Extension | Z-intel Hvy. Proton Missile Launcher | -4/Extension | Z-intel Prc. Energy Filter | -4/Extension | Z-intel Imp. KE Penetrator | -4/Extension | Z-intel Adv. Variable Charge Gun | -4/Extension | Z-intel Hvy. Gatling Laser | -4/Extension | Z-intel Exp. Cooling System | -4/Extension | Z-intel Inertial Stasis Machine | -4/Extension | Z-intel Robot Schematics ------------------ A-15 Conveyor | -4/Extension | Z-intel X-72 Disruptor | -4/Extension | Z-intel H-77 Assassin | -4/Extension | Z-intel Fabricated ------------ Adv. Cooling System | x1 | -7/Factory | Preloaded Biometal Heavy Treads | x2 | -5/Factory | Preloaded Adv. Heavy Siege Treads | x2 | -5/Factory | Preloaded Alien Tech Used ----------------- Integrated Reactor Core Expander Transdimensional Reconstructor Achievements -------------- Derelict Escape Challenges ------------ None Game ------ Seed SurveybotCompactMaul Manual? 0 Play Time 03:38:05 Cumulative 250.9 hours Start 2020.09.14 @ 21:41:44 End 2020.09.15 @ 04:17:43 Sessions 3 Manual Loads 0 Difficulty Rogue Special Mode None Game No. 256 Rogue 256 Adventurer 0 Explorer 0 Win Type 0 Total 13 Types 9/0/3/1/0/0/0/0/0 Lore% 80 Gallery% 88 Achievement% 70 Wizard Run 0 Options --------- ASCII 0 Keyboard 1 Movement Numpad Keybinds 0 Fullscreen 1 Font 18/SmallcapsGlow Map View 76x50 Tactical HUD 1 Map Filters NONE Filters NONE Steam 1 RUN: 897c30a7-8f48-4a8c-9498-ac4ca0e8b793